fUST/lending_fUST_20251029
["ID","MTS","AMOUNT","RATE_DAILY","PERIOD"]
[392569407,1761679874934,-326.3357102,0.00022483,2]
[392569408,1761679874945,-760.0,0.000225,2]
[392569409,1761679874955,-337.1265234,0.00022574,2]
[392569410,1761679874964,-754.57887171,0.00022598,2]
[392569411,1761679885822,7233.32523075,0.00017429,2]
[392569412,1761679885847,10000.01,0.00017429,2]
[392569413,1761679885871,10000.01,0.00017429,2]
[392569414,1761679885895,10000.01,0.00017429,2]
[392569415,1761679885918,10000.01,0.00017429,2]
[392569416,1761679885940,10000.01,0.00017429,2]
[392569417,1761679885964,10000.01,0.00017429,2]
[392569418,1761679885987,10000.01,0.00017429,2]
[392569419,1761679886012,10000.01,0.00017429,2]
[392569420,1761679886035,10000.01,0.00017429,2]
[392569421,1761679896764,807.23116802,0.000181,5]
[392569422,1761679912483,4147.5951057,0.000181,5]
[392569423,1761679922345,300.0,0.00017428,2]
[392569424,1761679955890,500.0,0.00017428,2]
[392569425,1761679955939,232.30894446,0.00017428,2]
[392569426,1761679982235,300.0,0.00017428,2]
[392569427,1761679990233,500.0,0.00017428,2]
[392569428,1761679990263,500.0,0.00017428,2]
[392569429,1761679990295,500.0,0.00017428,2]
[392569430,1761679990326,500.0,0.00017428,2]
[392569431,1761679990356,419.55814038,0.00017428,2]
[392569432,1761679990389,500.0,0.00017428,2]
[392569433,1761679990417,500.0,0.00017428,2]
[392569434,1761679990445,500.0,0.00017428,2]
[392569435,1761679990482,500.0,0.00017428,2]
[392569436,1761679990524,500.0,0.00017428,2]
[392569437,1761679990602,500.0,0.00017428,2]
[392569438,1761679990631,500.0,0.00017428,2]
[392569439,1761679990698,500.0,0.00017428,2]
[392569440,1761680005959,361.71379753,0.00017428,2]
[392569441,1761680006022,219.59503757,0.00017428,2]
[392569442,1761680015020,1666.83408006,0.00017429,2]
[392569443,1761680015043,3333.16591994,0.00017429,2]
[392569444,1761680022813,1860.15881598,0.00017429,2]
[392569445,1761680023902,243.76096632,0.00017428,2]
[392569447,1761680042729,300.0,0.00017428,2]
[392569450,1761680085920,388.60859223,0.00017254,2]
[392569451,1761680102080,300.0,0.00017428,2]
[392569452,1761680127339,251.05645909,0.00017428,2]
[392569453,1761680163686,300.0,0.00017428,2]
[392569454,1761680223319,300.0,0.00017428,2]
[392569458,1761680320852,308.3357316,0.00017356,2]
[392569459,1761680408895,179.06,0.00017419,2]
[392569460,1761680409105,179.06,0.00017419,2]
[392569461,1761680497147,343.454251,0.00017298,2]
[392569462,1761680601339,357.23412323,0.00017342,2]
[392569463,1761680881658,312.5798578,0.00017336,2]
[392569871,1761681035924,-1609.25597635,0.00017429,2]
[392569878,1761681035979,-99247.84737105,0.00017429,2]
[392569880,1761681035991,-171909.48142185,0.00017429,2]
[392569882,1761681036000,-281.3192316,0.00017436,2]
[392569885,1761681036010,-999.0,0.00017483,2]
[392569888,1761681036019,-320.92219826,0.000175,2]
[392569891,1761681036028,-500.0,0.00017527,2]
[392569894,1761681036038,-500.0,0.00017527,2]
[392569896,1761681036047,-264.4546618,0.00017527,2]
[392569898,1761681036056,-300.0,0.00017777,2]
[392569900,1761681036066,-300.0,0.00017777,2]
[392569904,1761681036076,-300.0,0.00017777,2]
[392569907,1761681036087,-300.0,0.00017777,2]
[392569911,1761681036096,-300.0,0.00017777,2]
[392569914,1761681036106,-300.0,0.00017777,2]
[392569916,1761681036115,-300.0,0.00017777,2]
[392569918,1761681036124,-300.0,0.00017777,2]
[392569919,1761681036133,-300.0,0.00017777,2]
[392569920,1761681036143,-300.0,0.00017777,2]
[392569921,1761681036152,-300.0,0.00017777,2]
[392569922,1761681036161,-300.0,0.00017777,2]
[392569923,1761681036170,-300.0,0.00017777,2]
[392569924,1761681036179,-300.0,0.00017777,2]
[392569925,1761681036188,-300.0,0.00017777,2]
[392569926,1761681036205,-600.0,0.00017777,2]
[392569927,1761681036215,-200.0,0.00017796,2]
[392569928,1761681036227,-1190.72488394,0.00018054,2]
[392569930,1761681036236,-1190.72488394,0.00018128,2]
[392569932,1761681036245,-7494.0,0.00018303,2]
[392569934,1761681036255,-633.0,0.00018303,2]
[392569936,1761681036265,-2167.0,0.00018303,2]
[392569938,1761681036275,-984.0,0.00018303,2]
[392569940,1761681036284,-412.0,0.00018303,2]
[392569942,1761681036294,-940.34868179,0.00018363,2]
[392569944,1761681036303,-1190.72488394,0.00018426,2]
[392569946,1761681036313,-165.475084,0.0001863,2]
[392569948,1761681036322,-1190.72488394,0.00018764,2]
[392569950,1761681036332,-312.57985779,0.00018821,2]
[392569952,1761681036341,-168.04052155,0.00018842,2]
[392569954,1761681036350,-303.05757821,0.000189,2]
[392569956,1761681036360,-500.0,0.00019079,2]
[392569958,1761681036369,-303.05757821,0.00019089,2]
[392569960,1761681036378,-1190.72488394,0.00019101,2]
[392569962,1761681036388,-6367.4534895,0.00019181,2]
[392569964,1761681036398,-1190.72488394,0.00019186,2]
[392569966,1761681036407,-303.05757821,0.00019278,2]
[392569968,1761681036416,-160.0,0.00019296,2]
[392569970,1761681036425,-403.6515735,0.00019296,2]
[392569972,1761681036435,-160.0,0.00019296,2]
[392569974,1761681036444,-500.0,0.00019353,2]
[392569976,1761681036454,-331.95669329,0.00019436,2]
[392569978,1761681036463,-303.05757821,0.00019467,2]
[392569980,1761681036474,-500.0,0.00019467,2]
[392569982,1761681036484,-720.0,0.00019554,2]
[392569984,1761681036495,-1190.72488394,0.00019626,2]
[392569986,1761681036505,-500.0,0.00019627,2]
[392569988,1761681036515,-168.0,0.00019651,2]
[392569990,1761681036525,-303.05757821,0.00019656,2]
[392569992,1761681036535,-500.0,0.00019741,2]
[392569994,1761681036546,-454.58636732,0.00019845,4]
[392569997,1761681036556,-500.0,0.00019901,2]
[392569999,1761681036566,-1190.72488394,0.00019993,2]
[392570001,1761681036575,-500.0,0.00020015,2]
[392570003,1761681036584,-300.88499778,0.00020034,4]
[392570005,1761681036594,-245.9263524,0.00020113,2]
[392570007,1761681036603,-223.512,0.00020115,2]
[392570009,1761681036613,-500.0,0.00020175,2]
[392570011,1761681036623,-1190.72488394,0.00020267,2]
[392570013,1761681036632,-500.0,0.00020289,2]
[392570015,1761681036642,-312.57985779,0.00020305,2]
[392570017,1761681036651,-1190.72488394,0.0002041,2]
[392570019,1761681036660,-500.0,0.00020449,2]
[392570021,1761681036669,-500.0,0.00020563,2]
[392570023,1761681036680,-168.0,0.00020668,2]
[392570025,1761681036689,-500.0,0.00020723,2]
[392570027,1761681036699,-1190.72488394,0.00020781,2]
[392570029,1761681036708,-993.19,0.00020807,2]
[392570031,1761681036721,-1190.72488394,0.00020824,2]
[392570033,1761681036730,-500.0,0.00020837,2]
[392570035,1761681036740,-151.0,0.0002094,2]
[392570037,1761681036749,-600.0,0.00020954,2]
[392570039,1761681036759,-168.0,0.00020977,2]
[392570041,1761681036769,-151.0,0.00020995,2]
[392570043,1761681036779,-500.0,0.00020997,2]
[392570045,1761681036788,-6367.45348949,0.00021041,2]
[392570047,1761681036798,-198.0,0.0002105,2]
[392570049,1761681036807,-1190.72488394,0.00021103,2]
[392570051,1761681036817,-500.0,0.00021111,2]
[392570053,1761681036827,-500.0,0.00021271,2]
[392570055,1761681036836,-633.0,0.00021303,2]
[392570057,1761681036845,-2167.0,0.00021303,2]
[392570059,1761681036855,-412.0,0.00021303,2]
[392570061,1761681036864,-500.0,0.00021385,2]
[392570063,1761681036874,-338.15833485,0.00021385,2]
[392570065,1761681036884,-382.59415498,0.00021436,2]
[392570067,1761681036893,-864.0,0.0002151,20]
[392570069,1761681036902,-1190.72488394,0.00021513,2]
[392570071,1761681036914,-500.0,0.00021545,2]
[392570073,1761681036925,-548.81049135,0.00021659,2]
[392570075,1761681036938,-1190.72488394,0.00021684,2]
[392570077,1761681036947,-312.57985779,0.0002179,2]
[392570079,1761681036957,-1986.38,0.00021798,2]
[392570081,1761681036967,-32739.50366773,0.00021817,3]
[392570083,1761681036978,-403.41916809,0.00021817,3]
[392570114,1761681037275,-158.94902,0.00021817,3]
[392570116,1761681037286,-500.0,0.00021819,2]
[392570118,1761681037295,-500.0,0.00021917,2]
[392570120,1761681037305,-500.0,0.00021917,2]
[392570121,1761681037314,-500.0,0.00021917,2]
[392570123,1761681037323,-500.0,0.00021917,2]
[392570125,1761681037333,-500.0,0.00021917,2]
[392570127,1761681037342,-500.0,0.00021917,2]
[392570129,1761681037352,-500.0,0.00021917,2]
[392570131,1761681037361,-517.82637223,0.00021917,2]
[392570133,1761681037370,-500.0,0.00021917,2]
[392570135,1761681037379,-500.0,0.00021917,2]
[392570137,1761681037389,-500.0,0.00021917,2]
[392570139,1761681037398,-500.0,0.00021917,2]
[392570141,1761681037407,-500.0,0.00021917,2]
[392570143,1761681037417,-500.0,0.00021917,2]
[392570145,1761681037426,-1037.68,0.00021917,2]
[392570147,1761681037436,-693.61,0.00021917,2]
[392570149,1761681037445,-500.0,0.00021917,2]
[392570151,1761681037454,-500.0,0.00021917,2]
[392570153,1761681037464,-584.06,0.00021917,2]
[392570155,1761681037475,-500.0,0.00021917,2]
[392570157,1761681037484,-500.0,0.00021917,2]
[392570159,1761681037494,-500.0,0.00021917,2]
[392570160,1761681037504,-1008.7,0.00021917,2]
[392570162,1761681037515,-500.0,0.00021917,2]
[392570164,1761681037524,-500.0,0.00021917,2]
[392570166,1761681037534,-500.0,0.00021917,2]
[392570168,1761681037543,-500.0,0.00021917,2]
[392570170,1761681037552,-637.64,0.00021917,2]
[392570172,1761681037561,-778.01,0.00021917,2]
[392570174,1761681037571,-500.0,0.00021917,2]
[392570176,1761681037581,-657.81,0.00021917,2]
[392570178,1761681037590,-500.0,0.00021917,2]
[392570180,1761681037600,-824.97,0.00021917,2]
[392570182,1761681037610,-500.0,0.00021917,2]
[392570184,1761681037619,-500.0,0.00021917,2]
[392570186,1761681037629,-500.0,0.00021917,2]
[392570188,1761681037639,-500.0,0.00021917,2]
[392570190,1761681037649,-527.87,0.00021917,2]
[392570192,1761681037659,-500.0,0.00021917,2]
[392570194,1761681037669,-500.0,0.00021917,2]
[392570196,1761681037679,-500.0,0.00021917,2]
[392570198,1761681037690,-572.95,0.00021917,2]
[392570200,1761681037700,-811.59,0.00021917,2]
[392570201,1761681037709,-500.0,0.00021917,2]
[392570203,1761681037720,-590.54537546,0.00021917,2]
[392570205,1761681037730,-500.0,0.00021917,2]
[392570207,1761681037740,-500.0,0.00021917,2]
[392570209,1761681037750,-500.0,0.00021917,2]
[392570211,1761681037759,-861.11,0.00021917,2]
[392570213,1761681037769,-500.0,0.00021917,2]
[392570215,1761681037779,-500.0,0.00021917,2]
[392570217,1761681037789,-500.0,0.00021917,2]
[392570219,1761681037799,-386.79833715,0.00021917,2]
[392570221,1761681037808,-500.0,0.00021917,2]
[392570223,1761681037818,-671.08,0.00021917,2]
[392570225,1761681037827,-500.0,0.00021917,2]
[392570227,1761681037837,-1064.81,0.00021917,2]
[392570229,1761681037847,-500.0,0.00021917,2]
[392570231,1761681037856,-500.0,0.00021917,2]
[392570233,1761681037865,-500.0,0.00021917,2]
[392570236,1761681037875,-1140.75,0.00021917,2]
[392570237,1761681037885,-4665.03,0.00021917,2]
[392570239,1761681037894,-569.79,0.00021917,2]
[392570241,1761681037904,-585.41,0.00021917,2]
[392570243,1761681037913,-500.0,0.00021917,2]
[392570245,1761681037923,-690.88,0.00021917,2]
[392570247,1761681037932,-500.0,0.00021917,2]
[392570249,1761681037942,-500.0,0.00021917,2]
[392570251,1761681037952,-500.0,0.00021917,2]
[392570253,1761681037961,-500.0,0.00021917,2]
[392570255,1761681037972,-500.0,0.00021917,2]
[392570257,1761681037981,-1244.67,0.00021917,2]
[392570259,1761681037990,-500.0,0.00021917,2]
[392570261,1761681038000,-500.0,0.00021917,2]
[392570263,1761681038009,-605.16,0.00021917,2]
[392570265,1761681038018,-677.35,0.00021917,2]
[392570267,1761681038028,-1000.0,0.00021917,2]
[392570269,1761681038039,-500.0,0.00021917,2]
[392570271,1761681038049,-2583.27,0.00021917,2]
[392570273,1761681038058,-500.0,0.00021917,2]
[392570275,1761681038067,-500.0,0.00021917,2]
[392570277,1761681038077,-500.0,0.00021917,2]
[392570279,1761681038086,-397.98907305,0.00021917,2]
[392570281,1761681038096,-500.0,0.00021917,2]
[392570283,1761681038106,-500.0,0.00021917,2]
[392570285,1761681038115,-168.71132078,0.00021917,2]
[392570287,1761681038124,-500.0,0.00021917,2]
[392570289,1761681038134,-500.0,0.00021917,2]
[392570291,1761681038144,-500.0,0.00021917,2]
[392570293,1761681038154,-940.89,0.00021917,2]
[392570295,1761681038163,-500.0,0.00021917,2]
[392570297,1761681038173,-500.0,0.00021917,2]
[392570299,1761681038184,-605.01,0.00021917,2]
[392570301,1761681038196,-500.0,0.00021917,2]
[392570303,1761681038206,-500.0,0.00021917,2]
[392570305,1761681038216,-500.0,0.00021917,2]
[392570307,1761681038230,-500.0,0.00021917,2]
[392570308,1761681038243,-500.0,0.00021917,2]
[392570311,1761681038254,-327.19018728,0.00021917,2]
[392570313,1761681038264,-164.765943,0.00021917,7]
[392570315,1761681038274,-500.0,0.00021917,2]
[392570316,1761681038285,-1003.69,0.00021917,2]
[392570318,1761681038295,-500.0,0.00021917,2]
[392570320,1761681038305,-500.0,0.00021917,2]
[392570322,1761681038315,-915.78,0.00021917,2]
[392570324,1761681038325,-500.0,0.00021917,2]
[392570326,1761681038335,-500.0,0.00021917,2]
[392570328,1761681038346,-500.0,0.00021917,2]
[392570330,1761681038356,-576.3,0.00021917,2]
[392570331,1761681038366,-819.0,0.00021917,2]
[392570332,1761681038376,-500.0,0.00021917,2]
[392570333,1761681038387,-500.0,0.00021917,2]
[392570334,1761681038397,-616.14,0.00021917,2]
[392570335,1761681038408,-500.0,0.00021917,2]
[392570336,1761681038420,-500.0,0.00021917,2]
[392570337,1761681038431,-500.0,0.00021917,2]
[392570338,1761681038442,-1114.44,0.00021917,2]
[392570339,1761681038452,-500.0,0.00021917,2]
[392570340,1761681038462,-500.0,0.00021917,2]
[392570341,1761681038475,-806.83,0.00021917,2]
[392570342,1761681038486,-181.63729968,0.00021917,2]
[392570343,1761681038496,-1163.95,0.00021917,2]
[392570345,1761681038506,-656.32,0.00021917,2]
[392570347,1761681038517,-547.97,0.00021917,2]
[392570349,1761681038527,-649.09,0.00021917,2]
[392570351,1761681038537,-1036.04,0.00021917,2]
[392570353,1761681038547,-500.0,0.00021917,2]
[392570355,1761681038556,-1019.47,0.00021917,2]
[392570357,1761681038566,-500.0,0.00021917,2]
[392570359,1761681038576,-500.0,0.00021917,2]
[392570361,1761681038586,-500.0,0.00021917,2]
[392570363,1761681038596,-500.0,0.00021917,2]
[392570365,1761681038606,-500.0,0.00021917,2]
[392570367,1761681038617,-500.0,0.00021917,2]
[392570369,1761681038626,-500.0,0.00021917,2]
[392570371,1761681038636,-500.0,0.00021917,2]
[392570373,1761681038646,-720.7,0.00021917,2]
[392570375,1761681038656,-500.0,0.00021917,2]
[392570377,1761681038666,-784.17,0.00021917,2]
[392570379,1761681038675,-500.0,0.00021917,2]
[392570381,1761681038685,-500.0,0.00021917,2]
[392570383,1761681038695,-1719.37,0.00021917,2]
[392570385,1761681038705,-500.0,0.00021917,2]
[392570387,1761681038716,-711.71,0.00021917,2]
[392570389,1761681038732,-246.84313436,0.00021917,2]
[392570390,1761681038742,-807.23,0.00021917,2]
[392570391,1761681038753,-730.28,0.00021917,2]
[392570392,1761681038763,-500.0,0.00021917,2]
[392570393,1761681038774,-500.0,0.00021917,2]
[392570394,1761681038785,-500.0,0.00021917,2]
[392570395,1761681038796,-775.82,0.00021917,2]
[392570396,1761681038807,-1450.9,0.00021917,2]
[392570397,1761681038818,-500.0,0.00021917,2]
[392570398,1761681038829,-723.44,0.00021917,2]
[392570399,1761681038839,-500.0,0.00021917,2]
[392570400,1761681038851,-500.0,0.00021917,2]
[392570401,1761681038863,-500.0,0.00021917,2]
[392570402,1761681038873,-500.0,0.00021917,2]
[392570403,1761681038885,-500.0,0.00021917,2]
[392570404,1761681038895,-500.0,0.00021917,2]
[392570405,1761681038906,-498.21844673,0.00021917,2]
[392570406,1761681038916,-500.0,0.00021917,2]
[392570407,1761681038927,-500.0,0.00021917,2]
[392570408,1761681038938,-531.67,0.00021917,2]
[392570409,1761681038948,-500.0,0.00021917,2]
[392570410,1761681038959,-500.0,0.00021917,2]
[392570411,1761681038970,-567.23,0.00021917,2]
[392570412,1761681038984,-649.92,0.00021917,2]
[392570413,1761681038994,-500.0,0.00021917,2]
[392570414,1761681039004,-500.0,0.00021917,2]
[392570415,1761681039015,-500.0,0.00021917,2]
[392570416,1761681039025,-500.0,0.00021917,2]
[392570417,1761681039035,-500.0,0.00021917,2]
[392570419,1761681039045,-500.0,0.00021917,2]
[392570421,1761681039055,-500.0,0.00021917,2]
[392570423,1761681039065,-500.0,0.00021917,2]
[392570425,1761681039075,-584.25903579,0.00021917,2]
[392570426,1761681039084,-500.0,0.00021917,2]
[392570428,1761681039095,-500.0,0.00021917,2]
[392570430,1761681039106,-941.8,0.00021917,2]
[392570431,1761681039117,-938.67,0.00021917,2]
[392570433,1761681039127,-500.0,0.00021917,2]
[392570434,1761681039138,-500.0,0.00021917,2]
[392570436,1761681039149,-500.0,0.00021917,2]
[392570438,1761681039159,-500.0,0.00021917,2]
[392570439,1761681039170,-526.26,0.00021917,2]
[392570441,1761681039180,-500.0,0.00021917,2]
[392570442,1761681039190,-500.0,0.00021917,2]
[392570444,1761681039204,-1000.0,0.00021917,2]
[392570446,1761681039214,-535.72311382,0.00021917,2]
[392570448,1761681039231,-500.0,0.00021917,2]
[392570449,1761681039242,-745.41,0.00021917,2]
[392570451,1761681039253,-685.06,0.00021917,2]
[392570452,1761681039263,-500.0,0.00021917,2]
[392570454,1761681039273,-500.0,0.00021917,2]
[392570455,1761681039283,-500.0,0.00021917,2]
[392570457,1761681039293,-550.0475483,0.00021917,2]
[392570459,1761681039303,-500.0,0.00021917,2]
[392570460,1761681039313,-500.0,0.00021917,2]
[392570462,1761681039322,-500.0,0.00021917,2]
[392570463,1761681039332,-500.0,0.00021917,2]
[392570465,1761681039342,-500.0,0.00021917,2]
[392570467,1761681039352,-500.0,0.00021917,2]
[392570468,1761681039362,-1332.94,0.00021917,2]
[392570470,1761681039371,-500.0,0.00021917,2]
[392570472,1761681039380,-500.0,0.00021917,2]
[392570473,1761681039389,-500.0,0.00021917,2]
[392570475,1761681039400,-500.0,0.00021917,2]
[392570477,1761681039409,-500.0,0.00021917,2]
[392570478,1761681039419,-500.0,0.00021917,2]
[392570480,1761681039428,-500.0,0.00021917,2]
[392570482,1761681039438,-500.0,0.00021917,2]
[392570483,1761681039447,-1221.45,0.00021917,2]
[392570485,1761681039457,-500.0,0.00021917,2]
[392570487,1761681039468,-500.0,0.00021917,2]
[392570488,1761681039481,-537.25,0.00021917,2]
[392570490,1761681039490,-500.0,0.00021917,2]
[392570492,1761681039500,-508.02,0.00021917,2]
[392570494,1761681039510,-500.0,0.00021917,2]
[392570495,1761681039520,-645.76,0.00021917,2]
[392570497,1761681039529,-775.59,0.00021917,2]
[392570499,1761681039539,-500.0,0.00021917,2]
[392570500,1761681039549,-500.0,0.00021917,2]
[392570502,1761681039559,-586.37,0.00021917,2]
[392570504,1761681039568,-1638.62,0.00021917,2]
[392570505,1761681039577,-1589.84,0.00021917,2]
[392570507,1761681039587,-844.42,0.00021917,2]
[392570509,1761681039597,-500.0,0.00021917,2]
[392570511,1761681039607,-500.0,0.00021917,2]
[392570513,1761681039617,-1092.86,0.00021917,2]
[392570515,1761681039626,-686.18,0.00021917,2]
[392570516,1761681039636,-1562.03,0.00021917,2]
[392570518,1761681039645,-500.0,0.00021917,2]
[392570520,1761681039655,-500.0,0.00021917,2]
[392570522,1761681039664,-500.0,0.00021917,2]
[392570523,1761681039674,-500.0,0.00021917,2]
[392570525,1761681039683,-500.0,0.00021917,2]
[392570527,1761681039692,-500.0,0.00021917,2]
[392570528,1761681039702,-17266.81,0.00021917,2]
[392570530,1761681039711,-500.0,0.00021917,2]
[392570532,1761681039723,-604.06,0.00021917,2]
[392570534,1761681039732,-500.0,0.00021917,2]
[392570540,1761681039741,-874.0,0.00021917,2]
[392570541,1761681039799,-500.0,0.00021917,2]
[392570543,1761681039809,-500.0,0.00021917,2]
[392570545,1761681039819,-500.0,0.00021917,2]
[392570546,1761681039828,-1099.54,0.00021917,2]
[392570548,1761681039837,-918.09,0.00021917,2]
[392570550,1761681039847,-500.0,0.00021917,2]
[392570551,1761681039856,-513.17,0.00021917,2]
[392570553,1761681039868,-500.0,0.00021917,2]
[392570555,1761681039879,-841.25,0.00021917,2]
[392570557,1761681039889,-877.64,0.00021917,2]
[392570558,1761681039899,-980.15,0.00021917,2]
[392570560,1761681039910,-500.0,0.00021917,2]
[392570562,1761681039920,-691.4,0.00021917,2]
[392570563,1761681039931,-1919.77,0.00021917,2]
[392570565,1761681039940,-539.04,0.00021917,2]
[392570567,1761681039949,-500.0,0.00021917,2]
[392570568,1761681039959,-500.0,0.00021917,2]
[392570570,1761681039975,-725.04,0.00021917,2]
[392570572,1761681039986,-538.12,0.00021917,2]
[392570573,1761681039995,-500.0,0.00021917,2]
[392570575,1761681040005,-500.0,0.00021917,2]
[392570577,1761681040015,-500.0,0.00021917,2]
[392570579,1761681040024,-1272.97,0.00021917,2]
[392570580,1761681040033,-500.74623789,0.00021917,2]
[392570582,1761681040043,-726.41,0.00021917,2]
[392570584,1761681040052,-159.324881,0.00021917,7]
[392570585,1761681040062,-500.0,0.00021917,2]
[392570587,1761681040072,-1485.19,0.00021917,2]
[392570589,1761681040081,-863.36,0.00021917,2]
[392570590,1761681040091,-500.0,0.00021917,2]
[392570592,1761681040100,-795.57,0.00021917,2]
[392570594,1761681040111,-500.0,0.00021917,2]
[392570596,1761681040120,-500.0,0.00021917,2]
[392570597,1761681040129,-500.0,0.00021917,2]
[392570599,1761681040138,-1819.67,0.00021917,2]
[392570601,1761681040148,-500.0,0.00021917,2]
[392570602,1761681040156,-535.67,0.00021917,2]
[392570604,1761681040165,-500.0,0.00021917,2]
[392570606,1761681040175,-500.0,0.00021917,2]
[392570607,1761681040186,-687.89,0.00021917,2]
[392570609,1761681040196,-2093.26,0.00021917,2]
[392570611,1761681040208,-500.0,0.00021917,2]
[392570612,1761681040218,-500.0,0.00021917,2]
[392570614,1761681040235,-500.0,0.00021917,2]
[392570616,1761681040246,-766.31,0.00021917,2]
[392570618,1761681040256,-531.27,0.00021917,2]
[392570619,1761681040267,-500.0,0.00021917,2]
[392570621,1761681040278,-1511.83,0.00021917,2]
[392570623,1761681040288,-500.0,0.00021917,2]
[392570625,1761681040298,-500.0,0.00021917,2]
[392570627,1761681040308,-671.07,0.00021917,2]
[392570629,1761681040318,-1606.94,0.00021917,2]
[392570631,1761681040328,-1327.55,0.00021917,2]
[392570633,1761681040337,-1142.25,0.00021917,2]
[392570635,1761681040347,-500.0,0.00021917,2]
[392570637,1761681040357,-3067.82,0.00021917,2]
[392570639,1761681040367,-936.2,0.00021917,2]
[392570641,1761681040379,-238.75194573,0.00021917,2]
[392570643,1761681040389,-1238.83,0.00021917,2]
[392570645,1761681040399,-500.0,0.00021917,2]
[392570647,1761681040410,-500.0,0.00021917,2]
[392570650,1761681040420,-3537.38,0.00021917,2]
[392570652,1761681040430,-500.0,0.00021917,2]
[392570654,1761681040439,-500.0,0.00021917,2]
[392570656,1761681040448,-682.64,0.00021917,2]
[392570658,1761681040458,-596.78,0.00021917,2]
[392570660,1761681040467,-1750.04,0.00021917,2]
[392570661,1761681040483,-500.0,0.00021917,2]
[392570662,1761681040493,-1417.89,0.00021917,2]
[392570663,1761681040503,-500.0,0.00021917,2]
[392570664,1761681040512,-500.0,0.00021917,2]
[392570665,1761681040521,-500.0,0.00021917,2]
[392570666,1761681040530,-500.0,0.00021917,2]
[392570667,1761681040540,-500.33,0.00021917,2]
[392570668,1761681040549,-500.0,0.00021917,2]
[392570669,1761681040558,-542.24,0.00021917,2]
[392570670,1761681040567,-500.0,0.00021917,2]
[392570671,1761681040577,-1840.48,0.00021917,2]
[392570672,1761681040586,-1139.24,0.00021917,2]
[392570673,1761681040595,-500.0,0.00021917,2]
[392570674,1761681040603,-595.24,0.00021917,2]
[392570675,1761681040612,-1252.58,0.00021917,2]
[392570676,1761681040621,-244.59147577,0.00021917,2]
[392570677,1761681040630,-500.0,0.00021917,2]
[392570678,1761681040638,-1253.54,0.00021917,2]
[392570679,1761681040648,-706.29,0.00021917,2]
[392570680,1761681040657,-1801.13,0.00021917,2]
[392570681,1761681040666,-500.0,0.00021917,2]
[392570682,1761681040674,-500.0,0.00021917,2]
[392570683,1761681040685,-500.0,0.00021917,2]
[392570684,1761681040694,-1170.56,0.00021917,2]
[392570685,1761681040703,-500.0,0.00021917,2]
[392570686,1761681040713,-1394.97,0.00021917,2]
[392570687,1761681040726,-642.11,0.00021917,2]
[392570688,1761681040736,-500.0,0.00021917,2]
[392570689,1761681040745,-500.0,0.00021917,2]
[392570690,1761681040754,-500.0,0.00021917,2]
[392570691,1761681040763,-241.44471779,0.00021917,2]
[392570692,1761681040772,-597.03,0.00021917,2]
[392570693,1761681040782,-500.0,0.00021917,2]